bitfinex/quotes_ETHUSD_20260108
["timestamp","ask_amount","ask_price","bid_price","bid_amount"]
[1767856282195,2.89585989,3107.8,3106.4,3.92135952]
[1767856282498,2.89585989,3107.8,3106.4,0.70220014]
[1767856282703,2.89585989,3107.8,3106.4,3.66392291]
[1767856282911,2.89585989,3107.8,3106.3,0.841]
[1767856283306,2.89585989,3107.6,3106.3,0.841]
[1767856285640,2.89585989,3107.4,3106.3,0.841]
[1767856285959,2.89585989,3107.4,3106.0,3.22157034]
[1767856285960,2.89585989,3107.3,3106.0,0.002]
[1767856286253,6.51801536,3107.4,3106.0,0.002]
[1767856286254,2.89585989,3107.1,3106.0,0.002]
[1767856287517,2.89585989,3106.9,3106.0,0.002]
[1767856289849,2.89585989,3106.8,3106.0,0.002]
[1767856291763,2.89585989,3106.8,3105.7,0.002]
[1767856291943,2.89585989,3106.6,3105.7,0.002]
[1767856292146,2.89585989,3106.4,3105.7,0.002]
[1767856293059,2.89585989,3106.4,3106.0,0.002]
[1767856294169,2.89585989,3106.4,3105.4,0.002]
[1767856294170,2.90775692,3106.3,3105.4,0.002]
[1767856294367,2.90775692,3106.1,3104.7,3.22290246]
[1767856294534,2.90775692,3106.1,3104.7,2.95225385]
[1767856294740,2.90775692,3106.1,3104.9,2.95025385]
[1767856294939,2.90775692,3106.1,3104.9,6.17090868]
[1767856296040,2.90775692,3106.1,3104.9,2.95025385]
[1767856296366,2.90775692,3106.0,3104.9,2.95025385]
[1767856297171,2.90775692,3106.0,3105.0,2.95225385]
[1767856297686,2.90775692,3106.0,3105.0,0.002]
[1767856297976,2.90775692,3106.0,3104.7,0.002]
[1767856298176,2.90775692,3105.8,3104.7,0.002]
[1767856298640,2.90775692,3106.1,3104.7,0.002]
[1767856299264,2.90775692,3106.1,3104.7,2.95225385]
[1767856300342,2.90775692,3106.1,3104.8,2.95025385]
[1767856300843,2.90775692,3106.0,3104.8,2.95025385]
[1767856301150,2.90775692,3106.3,3104.9,3.56756861]
[1767856301945,2.90775692,3106.3,3105.1,2.95025385]
[1767856302577,0.94138753,3107.2,3105.0,0.06452133]
[1767856302578,2.90775692,3107.1,3105.7,2.95025385]
[1767856303868,2.90775692,3107.7,3106.4,3.01477518]
[1767856304054,2.90775692,3107.7,3106.5,3.25173137]
[1767856304055,0.29087569,3107.7,3106.5,3.25173137]
[1767856304261,0.001,3107.8,3106.5,3.25173137]
[1767856304776,2.90875692,3107.8,3106.5,3.25173137]
[1767856304945,2.90875692,3107.8,3106.5,0.30147752]
[1767856305743,2.90875692,3107.8,3106.4,0.841]
[1767856306453,0.001,3106.8,3106.4,0.841]
[1767856306674,2.90875692,3107.8,3106.5,3.21905433]
[1767856306998,2.90875692,3107.8,3106.9,0.06452133]
[1767856307167,2.90875692,3107.8,3106.7,0.06452133]
[1767856307471,2.90875692,3107.8,3106.8,0.06452133]
[1767856307793,0.837,3108.6,3107.0,3.01477518]
[1767856308000,0.837,3108.6,3107.0,2.95025385]
[1767856308363,0.837,3108.6,3106.8,0.06452133]
[1767856308364,0.837,3108.6,3107.2,2.95025385]
[1767856308569,2.90775692,3108.5,3107.2,2.95025385]
[1767856308768,3.60392412,3108.4,3106.8,2.95025385]
[1767856308999,3.60392412,3108.4,3107.2,2.95025385]
[1767856309179,0.6961672,3108.4,3107.2,2.95025385]
[1767856309501,0.837,3108.6,3107.2,2.95025385]
[1767856309893,0.837,3108.6,3107.2,6.16855462]
[1767856310282,0.837,3108.6,3107.3,2.95025385]
[1767856310488,2.90775692,3108.5,3107.2,3.21832953]
[1767856310792,2.90775692,3108.5,3106.7,0.06452133]
[1767856310793,2.90775692,3108.4,3106.5,2.95025385]
[1767856310994,2.90775692,3108.2,3106.8,3.21874306]
[1767856311181,2.90775692,3108.2,3106.6,0.37912539]
[1767856311370,2.90775692,3108.2,3106.6,3.32937924]
[1767856311586,2.90775692,3108.0,3106.6,0.37912539]
[1767856311789,2.90775692,3108.0,3106.4,0.841]
[1767856312274,2.90775692,3108.0,3106.4,4.06014811]
[1767856312465,2.90775692,3108.0,3106.4,4.06008511]
[1767856312882,2.90775692,3107.9,3106.4,4.06008511]
[1767856313671,2.90775692,3107.9,3106.4,0.841]
[1767856314000,2.90775692,3107.7,3106.4,0.841]
[1767856314500,2.90775692,3107.7,3106.4,4.06015429]
[1767856315581,2.90775692,3107.7,3106.4,0.841]
[1767856315784,2.90775692,3107.6,3106.4,0.841]
[1767856316598,2.90775692,3107.6,3106.0,3.21951199]
[1767856316599,2.90775692,3107.5,3106.0,3.21951199]
[1767856316803,2.90775692,3107.3,3106.1,3.21946096]
[1767856318078,2.90775692,3107.3,3106.7,0.002]
[1767856319717,2.90775692,3107.3,3106.4,0.002]
[1767856319892,2.90775692,3106.7,3105.1,2.95225385]
[1767856320085,6.22904129,3106.8,3105.5,3.22008635]
[1767856320086,2.90775692,3106.5,3105.5,3.22008635]
[1767856320491,0.91367982,3106.6,3105.6,3.21996177]
[1767856320709,2.90775692,3106.9,3105.6,3.21996177]
[1767856320878,2.90775692,3106.9,3105.7,3.21987314]
[1767856321075,2.90775692,3106.9,3105.5,3.22009338]
[1767856321304,2.90775692,3106.8,3105.4,6.1704438]
[1767856321819,2.90775692,3106.8,3105.5,2.95025385]
[1767856322024,6.12605412,3107.3,3105.7,2.95025385]
[1767856322722,2.90775692,3107.3,3105.7,2.95025385]
[1767856322929,3.03246213,3107.1,3105.3,3.07392171]
[1767856323128,3.03246213,3106.6,3105.3,3.07392171]
[1767856323426,0.92615034,3106.5,3105.3,3.07392171]
[1767856323625,0.837,3106.8,3105.3,3.07392171]
[1767856324602,2.88230788,3106.2,3105.1,0.002]
[1767856327511,2.88230788,3106.1,3105.1,0.002]
[1767856327720,2.88230788,3106.3,3105.1,0.002]
[1767856328035,3.25423867,3106.2,3105.1,0.002]
[1767856328605,6.22904129,3106.6,3105.2,3.02880642]
[1767856328606,0.837,3106.6,3105.2,3.02880642]
[1767856329108,0.837,3106.6,3105.3,3.02880642]
[1767856329310,4.05596976,3106.6,3105.3,3.02880642]
[1767856330310,4.05596976,3106.6,3105.4,0.002]
[1767856330516,0.837,3106.6,3105.4,0.002]
[1767856330712,0.40558794,3106.5,3105.4,3.03080642]
[1767856331216,3.62466501,3106.5,3105.4,3.03080642]
[1767856331522,0.40558794,3106.5,3105.4,3.03080642]
[1767856331717,3.62468184,3106.5,3105.4,3.03080642]
[1767856332753,3.28789582,3106.5,3105.4,0.002]
[1767856332925,3.29479746,3106.4,3105.4,0.002]
[1767856333118,3.21926407,3106.3,3105.4,0.002]
[1767856333617,6.51399945,3106.4,3105.4,0.002]
[1767856334452,2.88230788,3106.3,3105.4,0.002]
[1767856334618,2.88230788,3106.3,3105.1,0.002]
[1767856334944,3.63169157,3106.4,3105.1,0.002]
[1767856334945,3.53370783,3106.2,3105.1,0.002]
[1767856335345,6.753132,3106.2,3105.1,0.002]
[1767856335642,0.65139995,3106.2,3105.1,3.03080642]
[1767856335843,0.837,3106.6,3105.1,3.03080642]
[1767856336252,2.88230788,3106.4,3105.1,3.03080642]
[1767856336832,2.88230788,3106.4,3105.1,0.002]
[1767856337337,6.10148434,3106.4,3105.1,3.03080642]
[1767856341567,2.88230788,3106.3,3105.1,3.03080642]
[1767856341737,10.25437396,3106.2,3105.1,3.03080642]
[1767856341937,12.54172091,3106.2,3105.1,3.03080642]
[1767856342876,12.54172091,3106.2,3105.4,0.002]
[1767856343571,3.21926407,3106.3,3105.4,3.03080642]
[1767856343865,0.32192641,3106.2,3105.4,3.03080642]
[1767856344275,3.54129514,3106.2,3105.4,3.03080642]
[1767856344476,3.54129679,3106.2,3105.4,3.03080642]
[1767856344775,0.32192641,3106.2,3105.4,3.03080642]
[1767856350368,6.93848194,3106.4,3105.4,3.03080642]
[1767856350785,2.88230788,3106.3,3105.4,3.03080642]
[1767856351148,4.05717406,3106.4,3105.4,3.03080642]
[1767856351964,6.93948194,3106.4,3105.4,3.03080642]
[1767856352380,3.07985595,3106.3,3105.4,3.03080642]
[1767856352679,5.07356144,3106.2,3105.4,3.03080642]
[1767856353183,0.838,3106.4,3105.4,3.03080642]
[1767856353480,7.43971439,3106.6,3105.6,3.13394084]
[1767856353680,4.35985844,3106.4,3105.6,3.13394084]
[1767856353882,4.35985844,3106.0,3105.4,0.002]
[1767856354793,3.08085595,3106.1,3105.4,0.002]
[1767856355095,4.35985844,3106.0,3105.4,0.002]
[1767856355383,5.10392988,3106.0,3105.4,0.002]
[1767856355757,4.35985844,3105.8,3105.4,0.002]
[1767856355991,4.35985844,3105.6,3105.1,0.002]
[1767856357468,3.07985595,3105.7,3105.1,0.002]
[1767856357880,4.35985844,3105.8,3105.1,0.002]
[1767856358884,3.82392739,3106.0,3105.1,3.13594084]
[1767856358885,8.18378583,3106.0,3105.1,3.13594084]
[1767856359090,4.35985844,3105.8,3105.1,3.13594084]
[1767856360377,5.58408494,3105.9,3105.1,3.13594084]
[1767856362280,6.44,3106.0,3105.1,3.13594084]
[1767856362493,6.44,3106.0,3105.3,3.13394084]
[1767856362777,0.839,3106.1,3105.7,3.13394084]
[1767856362778,0.001,3106.1,3105.7,3.13394084]
[1767856363008,0.001,3106.1,3105.8,3.88332077]
[1767856363482,0.001,3106.1,3105.8,3.13394084]
[1767856365775,0.001,3106.1,3105.2,3.13394084]
[1767856366405,0.001,3106.1,3105.3,3.13394084]
[1767856366829,0.001,3105.8,3105.3,3.13394084]
[1767856369797,0.001,3106.1,3105.7,3.13394084]
[1767856369996,0.001,3106.1,3105.8,3.44733492]
[1767856370704,0.001,3106.1,3105.5,3.13394084]
[1767856374145,0.001,3106.1,3105.2,3.13394084]
[1767856378034,0.001,3106.1,3105.3,3.13394084]
[1767856378537,0.001,3106.1,3105.5,0.002]
[1767856378738,0.001,3105.8,3105.5,0.002]
[1767856378944,0.001,3105.8,3105.5,0.31559408]
[1767856380430,0.001,3105.8,3105.5,3.44953492]
[1767856381252,0.001,3105.8,3105.5,0.31559408]
[1767856381762,0.001,3105.8,3105.6,3.13394084]
[1767856381962,0.001,3105.8,3105.5,0.31559408]
[1767856382163,0.001,3105.8,3105.6,0.34495349]
[1767856386835,0.001,3106.1,3105.6,3.50644293]
[1767856387046,2.97920897,3106.0,3105.6,0.34495349]
[1767856387241,0.001,3106.1,3105.5,0.002]
[1767856387538,2.98020897,3106.1,3105.5,0.002]
[1767856389187,2.97920897,3106.3,3105.6,7.51986409]
[1767856389769,6.44,3106.5,3105.7,3.16148944]
[1767856390072,6.44,3106.5,3105.8,3.91347585]
[1767856390859,0.001,3106.0,3105.8,3.91347585]
[1767856391055,6.44,3106.5,3105.9,3.16148944]
[1767856391261,2.97920897,3106.4,3105.8,0.75198641]
[1767856391854,6.44,3106.5,3105.8,3.91347585]
[1767856392080,6.44,3106.5,3105.9,3.5568141]
[1767856392380,6.44,3106.5,3106.0,3.16148944]
[1767856394150,9.41920897,3107.3,3106.3,3.16148944]
[1767856394563,2.97920897,3107.2,3106.3,3.16148944]
[1767856394785,2.97920897,3107.2,3106.4,0.31614894]
[1767856396360,2.97920897,3107.2,3106.4,3.47763838]
[1767856396779,2.97920897,3107.2,3106.4,0.31614894]
[1767856397007,2.97920897,3107.2,3106.0,4.35837465]
[1767856397513,2.97920897,3107.2,3106.1,3.21941497]
[1767856398088,2.97920897,3107.2,3106.0,7.57791092]
[1767856398312,2.97920897,3107.2,3106.0,4.35837465]
[1767856398615,2.97920897,3107.2,3106.0,13.95891192]
[1767856398912,2.97920897,3107.2,3106.1,0.75198641]
[1767856399284,2.97920897,3107.1,3106.1,0.75198641]
[1767856399484,2.97920897,3107.1,3106.2,3.16148944]
[1767856400519,6.44,3107.3,3106.3,3.16148944]
[1767856402297,0.001,3107.0,3106.3,3.16148944]
[1767856402493,0.001,3107.0,3106.5,3.16148944]
[1767856402706,6.44,3107.3,3106.8,3.16148944]
[1767856402908,9.41920897,3107.3,3106.5,10.73887225]
[1767856403121,9.41920897,3107.3,3106.6,3.16148944]
[1767856403718,6.44,3107.3,3106.6,3.16148944]
[1767856404024,2.97920897,3108.6,3106.9,3.16148944]
[1767856404183,2.97920897,3108.2,3106.9,3.16148944]
[1767856404907,2.97920897,3108.1,3106.9,6.38010016]
[1767856405214,2.97920897,3108.1,3107.0,3.16148944]
[1767856405421,3.71296733,3108.1,3107.1,3.5568141]
[1767856406408,3.81720897,3108.4,3107.1,3.5568141]
[1767856406997,3.81720897,3108.4,3107.3,3.16148944]
[1767856407385,4.35837465,3107.7,3106.9,3.16148944]
[1767856407606,2.97920897,3107.8,3106.9,3.16148944]
[1767856407807,2.97920897,3108.1,3106.9,3.16148944]
[1767856408007,3.27712987,3108.0,3106.9,3.16148944]
[1767856408184,3.27712987,3108.0,3106.8,3.16148944]
[1767856408384,3.27712987,3108.0,3107.0,3.16148944]
[1767856408608,3.27712987,3108.0,3107.0,6.3800085]
[1767856408802,3.27712987,3108.0,3107.1,3.16148944]
[1767856409316,0.32771299,3107.9,3107.1,3.16148944]
[1767856409902,2.97920897,3108.0,3107.1,3.16148944]
[1767856410099,2.97920897,3108.3,3107.2,3.16148944]
[1767856410708,4.35837465,3108.6,3107.2,3.16148944]
[1767856410709,2.97920897,3108.6,3107.2,3.16148944]
[1767856411012,2.97920897,3108.3,3107.2,3.16148944]
[1767856411217,2.97920897,3108.1,3107.2,3.16148944]
[1767856411400,3.27712987,3108.0,3107.0,3.16148944]
[1767856412924,2.97712987,3108.0,3107.0,3.16148944]
[1767856413521,2.97712987,3108.0,3107.1,2.97978673]
[1767856414320,3.01831412,3107.7,3106.7,2.97978673]
[1767856414520,3.32014553,3107.7,3106.7,3.59987003]
[1767856414820,3.01831412,3107.7,3106.7,3.59987003]
[1767856415028,3.01831412,3107.7,3106.7,2.97978673]
[1767856415189,0.001,3107.7,3106.7,2.97978673]
[1767856415652,0.001,3107.7,3106.7,3.04430806]
[1767856416032,0.001,3107.7,3106.8,2.97978673]
[1767856417299,0.001,3107.7,3106.9,2.97978673]
[1767856417504,0.001,3107.7,3107.1,2.97978673]
[1767856418090,0.001,3107.7,3106.9,2.97978673]
[1767856419433,0.001,3107.7,3107.0,2.97978673]
[1767856421463,0.001,3107.7,3107.0,3.21853577]
[1767856421738,0.001,3107.7,3107.1,2.97978673]
[1767856421912,0.001,3107.7,3107.3,2.97978673]
[1767856422723,3.01731412,3108.4,3107.4,2.97978673]
[1767856423741,6.23443819,3108.4,3107.4,2.97978673]
[1767856423936,3.01731412,3108.3,3107.4,2.97978673]
[1767856424254,3.01731412,3108.6,3107.2,3.60607111]
[1767856424425,11.63537465,3108.8,3107.2,3.60607111]
[1767856424426,3.01731412,3108.4,3107.3,0.36060711]
[1767856424626,3.01731412,3108.4,3107.3,3.57882395]
[1767856425326,3.01731412,3108.4,3107.3,0.36060711]
[1767856426326,3.01731412,3108.3,3107.3,0.36060711]
[1767856427028,0.001,3108.1,3107.3,3.34039384]
[1767856427241,0.001,3108.1,3107.5,2.97978673]
[1767856428763,0.001,3108.1,3107.4,0.40311996]
[1767856428764,4.35376617,3107.9,3107.2,2.97978673]
[1767856429828,0.001,3108.1,3107.2,2.97978673]
[1767856430024,4.35376617,3107.8,3107.2,2.97978673]
[1767856430665,0.001,3108.1,3107.2,2.97978673]
[1767856431025,4.35376617,3107.9,3107.2,2.97978673]
[1767856432053,4.35376617,3107.8,3107.2,2.97978673]
[1767856433637,7.57129801,3108.0,3107.2,2.97978673]
[1767856434164,4.35376617,3107.3,3107.0,0.002]
[1767856434364,3.01731412,3107.6,3107.0,2.98178673]
[1767856434365,0.11903747,3107.2,3107.0,2.98178673]
[1767856436185,0.04782674,3107.2,3107.0,2.98178673]
[1767856436351,0.04782674,3107.2,3107.1,3.2779654]
[1767856436546,0.04782674,3107.2,3107.1,2.97978673]
[1767856441279,0.00626335,3107.2,3107.1,2.97978673]
[1767856442876,3.03036425,3107.7,3107.0,0.002]
[1767856443591,2.99976425,3107.7,3107.1,4.35376617]
[1767856444880,2.99976425,3107.7,3107.0,3.1363925]
[1767856445090,2.99976425,3107.7,3107.1,0.31363925]
[1767856445397,0.001,3107.8,3107.1,0.31363925]
[1767856445709,0.001,3107.8,3107.1,3.44803175]
[1767856446005,0.001,3107.8,3107.0,0.002]
[1767856446006,4.35376617,3107.6,3107.0,0.002]
[1767856446321,0.001,3107.8,3107.1,3.1343925]
[1767856446602,4.35476617,3107.8,3107.1,3.1343925]
[1767856446817,4.35476617,3107.8,3107.1,3.44803175]
[1767856446980,0.001,3107.8,3107.1,3.44803175]
[1767856447816,0.001,3107.8,3107.2,3.1343925]
[1767856448012,0.001,3107.8,3107.2,3.19891383]
[1767856448305,0.001,3107.8,3107.4,3.1343925]
[1767856448616,0.001,3107.8,3107.6,3.1343925]
[1767856448812,0.837,3108.3,3107.8,3.1343925]
[1767856448976,2.91076245,3108.5,3108.1,4.35376617]
[1767856449177,2.91076245,3108.5,3107.7,3.1343925]
[1767856449178,2.91076245,3109.8,3108.4,3.1343925]
[1767856449373,2.91076245,3109.4,3108.2,3.1343925]
[1767856449578,5.08021903,3109.3,3108.2,3.44783175]
[1767856449778,2.91076245,3109.2,3108.2,4.66720542]
[1767856450395,3.21636486,3109.1,3108.2,4.66720542]
[1767856450589,3.21636486,3109.1,3107.8,0.06452133]
[1767856450590,2.91076245,3109.0,3107.8,4.4182875]
[1767856450785,2.91076245,3109.0,3107.8,7.63599268]
[1767856451305,2.91076245,3109.0,3107.8,6.35206632]
[1767856451504,2.91076245,3109.0,3108.1,3.1343925]
[1767856451680,2.91076245,3109.0,3108.2,4.35376617]
[1767856452010,2.91076245,3109.0,3108.2,5.05018227]
[1767856452211,2.91076245,3109.0,3108.2,8.18457477]
[1767856452704,3.94268319,3109.3,3108.3,3.1343925]
[1767856452705,8.29644936,3109.3,3108.3,3.1343925]
[1767856453003,0.72645286,3109.3,3108.3,3.1343925]
[1767856453221,7.56972619,3109.5,3108.3,3.1343925]
[1767856453594,2.91076245,3109.4,3108.3,3.1343925]
[1767856453777,4.35376617,3109.2,3108.3,3.1343925]
[1767856453980,2.91076245,3109.4,3108.3,3.1343925]
[1767856454178,4.35376617,3109.2,3108.3,3.1343925]
[1767856454407,0.001,3109.0,3108.3,3.1343925]
[1767856455103,0.001,3109.0,3108.5,3.1343925]
[1767856455708,7.56913871,3110.1,3108.3,3.21719039]
[1767856455709,2.91076245,3109.9,3109.0,3.1343925]
[1767856456006,3.21543408,3110.0,3108.2,0.6964161]
[1767856456007,4.35376617,3109.5,3108.5,3.1343925]
[1767856456211,0.43537662,3109.4,3108.5,3.1343925]
[1767856457325,4.35376617,3109.3,3108.5,3.1343925]
[1767856457500,14.13204418,3109.4,3108.5,3.1343925]
[1767856457702,4.35376617,3109.1,3108.5,3.1343925]
[1767856458034,4.78914279,3109.1,3108.5,3.1343925]
[1767856458528,2.91076245,3110.3,3109.1,3.1343925]
[1767856458730,4.35376617,3109.8,3109.1,3.1343925]
[1767856459304,0.837,3109.9,3109.1,3.1343925]
[1767856459499,4.87284279,3109.8,3108.9,3.1343925]
[1767856460021,7.78360524,3109.8,3108.9,3.1343925]
[1767856461308,4.87284279,3109.8,3108.9,3.1343925]
[1767856461800,4.35376617,3109.5,3108.9,3.1343925]
[1767856462321,4.35376617,3109.7,3108.9,3.1343925]
[1767856462640,0.80884879,3109.6,3108.9,3.1343925]
[1767856463146,0.80884879,3109.6,3108.5,3.1343925]
[1767856463147,4.35376617,3109.3,3108.5,3.1343925]
[1767856463714,4.35376617,3109.1,3108.3,3.1343925]
[1767856464003,0.837,3109.0,3108.3,3.1343925]
[1767856464405,4.02471541,3109.6,3108.3,3.1343925]
[1767856464621,5.19076617,3109.5,3108.4,3.1343925]
[1767856464840,4.35376617,3109.3,3108.4,3.1343925]
[1767856465146,6.12686118,3109.4,3108.4,3.1343925]
[1767856465319,4.35376617,3109.2,3108.4,3.1343925]
[1767856466023,0.837,3109.5,3108.5,3.1343925]
[1767856466238,0.51907662,3109.4,3108.5,3.1343925]
[1767856467456,0.51907662,3109.4,3108.7,0.002]
[1767856467826,0.837,3109.3,3108.7,3.1363925]
[1767856469133,0.837,3109.3,3108.8,3.1343925]
[1767856469521,0.837,3109.3,3108.9,3.1343925]
[1767856469724,2.91076245,3110.2,3109.3,3.1343925]
[1767856470057,0.837,3109.7,3109.3,3.1343925]
[1767856471128,2.91076245,3109.9,3109.2,4.35376617]
[1767856471333,0.837,3110.0,3109.2,7.48815867]
[1767856471634,0.837,3110.0,3109.2,11.45319545]
[1767856472069,0.837,3110.0,3109.3,3.03618757]
[1767856473481,0.837,3110.0,3109.5,3.03618757]
[1767856474293,0.837,3110.0,3109.6,3.03618757]
[1767856474586,6.44,3110.4,3109.7,3.03618757]
[1767856475158,14.00883635,3110.4,3109.7,3.03618757]
[1767856475385,10.79376617,3110.4,3109.7,3.03618757]
[1767856475553,6.44,3110.4,3109.7,3.03618757]
[1767856476187,9.28811371,3110.4,3109.4,3.03618757]
[1767856476383,0.92881137,3110.3,3109.4,3.03618757]
[1767856479189,7.20187988,3110.1,3109.1,3.03618757]
[1767856479487,0.92881137,3110.3,3109.4,3.03618757]
[1767856479690,3.21462846,3110.8,3109.7,4.35376617]
[1767856479863,3.21462846,3110.8,3109.8,3.03618757]
[1767856480060,7.56839463,3110.8,3109.8,3.03618757]
[1767856480387,7.56839463,3110.8,3110.0,0.002]
[1767856480692,2.84811371,3110.6,3110.0,0.002]
[1767856480872,7.20187988,3110.4,3110.0,0.002]
[1767856481380,7.20187988,3110.4,3109.4,3.03618757]
[1767856481381,4.35376617,3110.2,3109.4,3.03618757]
[1767856482063,3.21516263,3110.3,3109.4,3.03618757]
[1767856482264,4.35376617,3110.2,3109.4,3.03618757]
[1767856482594,3.21516263,3110.3,3109.4,3.03618757]
[1767856482787,4.14298451,3110.3,3109.4,3.03618757]
[1767856483090,4.14298451,3110.3,3109.1,3.03618757]
[1767856483091,2.84811371,3110.2,3109.1,3.03618757]
[1767856483674,0.837,3110.1,3109.1,3.03618757]
[1767856483893,3.21543408,3110.0,3109.1,3.03618757]
[1767856484098,0.69005478,3109.9,3109.1,3.03618757]
[1767856485193,3.53816849,3109.9,3108.8,3.03618757]
[1767856485707,3.21564087,3109.8,3108.8,3.03618757]
[1767856485909,6.75374839,3109.9,3108.8,3.03618757]
[1767856486110,0.67537484,3109.8,3108.8,3.03618757]
[1767856486311,4.05233406,3110.1,3108.9,3.03618757]
[1767856486610,2.84811371,3110.0,3108.9,3.03618757]
[1767856487514,0.837,3110.1,3108.9,3.03618757]
[1767856487711,0.837,3110.1,3109.0,3.21646831]
[1767856487916,0.837,3110.1,3109.1,3.66145316]
[1767856488688,4.05235336,3110.1,3109.1,3.66145316]
[1767856488883,0.837,3110.1,3109.1,3.66145316]
[1767856490690,2.84811371,3110.0,3109.1,3.66145316]
[1767856490888,2.84811371,3110.0,3109.1,3.03618757]
[1767856492598,6.06358059,3110.0,3109.1,3.03618757]
[1767856493610,2.84811371,3110.0,3109.4,0.002]
[1767856493895,6.06355141,3110.0,3109.4,0.002]
[1767856494432,7.07523046,3110.0,3109.4,0.002]
[1767856494722,1.01167905,3110.0,3109.4,3.03818757]
[1767856494924,0.838,3110.1,3109.4,3.03818757]
[1767856495125,0.001,3110.1,3109.4,3.03818757]
[1767856495292,0.838,3110.1,3109.4,3.03818757]
[1767856497721,0.838,3110.1,3109.5,3.03618757]
[1767856497922,0.838,3110.1,3109.7,3.03618757]
[1767856498129,0.838,3110.1,3109.4,3.03818757]
[1767856500835,4.05336731,3110.1,3109.4,3.03818757]
[1767856501035,0.838,3110.1,3109.4,3.03818757]
[1767856501233,2.84811371,3110.0,3109.0,3.03618757]
[1767856501440,2.84811371,3109.8,3108.7,3.03818757]
[1767856501801,2.84811371,3109.8,3108.7,0.002]
[1767856502115,3.074314,3109.6,3108.4,0.002]
[1767856502318,3.074314,3109.4,3107.6,2.85425087]
[1767856502513,3.074314,3109.2,3107.6,2.85425087]
[1767856502713,3.074314,3109.0,3107.6,2.85425087]
[1767856503435,2.99623102,3108.8,3107.6,2.85425087]
[1767856503838,2.99623102,3108.8,3107.7,3.02313091]
[1767856504543,2.99623102,3108.8,3107.4,3.02513091]
[1767856505018,2.99623102,3108.8,3107.4,0.002]
[1767856505218,2.99623102,3108.6,3107.4,0.002]
[1767856505424,2.99623102,3108.4,3107.4,0.002]
[1767856506049,2.99623102,3108.4,3107.4,3.02513091]
[1767856507431,6.21333478,3108.4,3107.4,3.02513091]
[1767856507626,2.99623102,3108.3,3107.4,0.002]
[1767856507826,2.99623102,3108.2,3107.4,0.002]
[1767856509419,1.02673271,3108.3,3107.4,0.002]
[1767856509420,2.99623102,3108.0,3107.4,0.002]
[1767856510672,4.02296373,3108.3,3107.4,0.002]
[1767856510821,6.21346646,3108.3,3107.4,0.002]
[1767856511026,2.99623102,3108.2,3107.4,0.002]
[1767856511530,6.21356805,3108.2,3107.4,0.002]
[1767856512045,2.99623102,3108.1,3107.4,0.002]
[1767856514134,6.21364974,3108.1,3107.4,0.002]
[1767856514329,0.62136497,3108.0,3107.4,0.002]
[1767856514931,3.2173332,3108.2,3107.4,3.02513091]
[1767856515433,6.21332019,3108.4,3107.4,3.02513091]
[1767856515754,0.838,3108.3,3107.4,3.02513091]
[1767856517755,2.99623102,3108.1,3107.4,0.002]
[1767856517941,0.62135272,3108.0,3107.4,0.002]
[1767856518729,0.62135272,3108.0,3107.7,0.002]
[1767856520641,3.83888492,3108.0,3107.7,0.002]
[1767856521239,2.99623102,3107.9,3107.4,0.002]
[1767856523651,6.21388628,3107.9,3107.4,0.002]
[1767856523850,1.00527712,3107.8,3107.4,0.002]
[1767856524040,4.00150814,3107.8,3107.4,0.002]
[1767856524766,2.99623102,3107.7,3107.4,0.002]
[1767856527475,2.99623102,3107.9,3107.4,0.002]
[1767856528373,6.21384455,3107.9,3107.4,0.002]
[1767856528581,2.99623102,3107.9,3107.4,0.002]
[1767856528977,6.21383838,3107.9,3107.4,0.002]
[1767856529148,2.99623102,3107.8,3107.4,0.002]
[1767856530680,2.99623102,3108.0,3107.7,0.002]
[1767856530884,6.21374976,3108.0,3107.7,0.002]
[1767856531374,3.21746307,3108.1,3107.7,0.002]
[1767856532188,2.89824508,3108.0,3107.7,0.002]
[1767856532482,3.83154569,3108.0,3107.7,0.002]
[1767856532682,7.04905006,3108.0,3107.7,0.002]
[1767856533757,3.83154569,3108.0,3107.7,0.002]
[1767856534589,4.15080593,3108.0,3107.7,0.002]
[1767856534883,0.93330061,3108.0,3107.7,0.002]
[1767856535080,3.21744054,3108.1,3107.7,0.002]
[1767856535684,6.11556156,3108.2,3107.7,0.002]
[1767856537265,0.838,3108.3,3107.7,3.04993453]
[1767856537494,4.05519808,3108.3,3107.7,3.04993453]
[1767856539459,0.838,3108.3,3107.7,3.04993453]
[1767856539654,0.838,3108.3,3107.7,3.35492798]
[1767856541509,0.838,3108.3,3107.8,3.04793453]
[1767856542601,2.89824508,3109.0,3108.2,3.04793453]
[1767856542602,0.839,3108.9,3108.2,3.04793453]
[1767856542897,0.838,3108.5,3107.8,3.04793453]
[1767856543402,0.838,3108.8,3108.4,3.04793453]
[1767856544272,0.838,3108.8,3108.4,3.35570662]
[1767856545104,0.839,3108.7,3108.4,3.35570662]
[1767856545400,0.838,3108.8,3108.6,3.04793453]
[1767856546092,0.838,3108.8,3108.6,2.91673155]
[1767856546299,0.838,3108.8,3108.3,0.02978641]
[1767856546512,3.73624508,3108.8,3108.3,0.02978641]
[1767856546700,0.838,3108.8,3108.3,0.02978641]
[1767856546902,0.838,3108.8,3108.3,3.07772094]
[1767856547227,0.838,3108.8,3108.3,3.38549303]
[1767856547605,9.65629933,3109.2,3108.3,3.38549303]
[1767856547606,9.33824508,3109.2,3108.3,3.38549303]
[1767856547919,6.44,3109.2,3108.4,3.04793453]
[1767856548212,6.44,3109.2,3108.5,3.04793453]
[1767856550319,2.89824508,3109.4,3108.5,3.04793453]
[1767856550620,2.89824508,3109.4,3108.6,3.35272798]
[1767856550817,6.44,3109.5,3108.6,3.35272798]
[1767856551041,7.278,3109.6,3108.6,3.35272798]
[1767856551196,10.49387781,3109.6,3108.6,3.35272798]
[1767856551398,7.278,3109.6,3108.6,3.35272798]
[1767856551592,7.278,3109.6,3108.8,3.04793453]
[1767856551797,10.49386281,3109.6,3108.8,3.04793453]
[1767856552034,4.34977896,3109.2,3108.6,0.30479345]
[1767856552235,4.34977896,3109.2,3108.3,3.07772094]
[1767856552615,2.89824508,3109.3,3108.3,3.07772094]
[1767856553134,7.24802404,3109.2,3108.3,3.07772094]
[1767856553315,2.89824508,3109.2,3108.4,3.04793453]
[1767856553515,4.34977896,3109.4,3108.4,3.04793453]
[1767856553712,2.89824508,3109.5,3108.5,3.04793453]
[1767856553916,3.21605454,3109.4,3108.5,3.04793453]
[1767856554119,0.001,3109.3,3108.5,3.04793453]